bitfinex/quotes_BTCUSD_20250610
["timestamp","ask_amount","ask_price","bid_price","bid_amount"]
[1749594758339,0.03354813,109910.0,109900.0,0.02910664]
[1749594758554,0.03354813,109910.0,109900.0,0.03546417]
[1749594758975,0.03354813,109910.0,109900.0,0.02910664]
[1749594759184,0.03354813,109910.0,109900.0,0.035465]
[1749594760011,0.03354813,109910.0,109900.0,0.03546329]
[1749594760425,0.03354813,109910.0,109900.0,0.03546311]
[1749594760630,0.03354813,109910.0,109900.0,0.03546301]
[1749594761040,0.03354813,109910.0,109900.0,0.02910664]
[1749594761250,0.03354813,109910.0,109900.0,0.03546749]
[1749594761459,0.03354813,109910.0,109900.0,0.03546748]
[1749594761634,0.03354813,109910.0,109900.0,0.03546752]
[1749594761897,0.03354813,109910.0,109900.0,0.02910664]
[1749594762314,0.03354813,109910.0,109900.0,0.03546752]
[1749594762525,0.03354813,109910.0,109900.0,0.0354675]
[1749594763151,0.03354813,109910.0,109900.0,0.03546703]
[1749594763360,0.03354813,109910.0,109900.0,0.02910664]
[1749594763568,0.03354813,109910.0,109900.0,0.0354671]
[1749594763774,0.03354813,109910.0,109900.0,0.02910664]
[1749594763984,0.03354813,109910.0,109900.0,0.03546709]
[1749594765021,0.03354813,109910.0,109900.0,0.02910664]
[1749594765233,0.03354813,109910.0,109900.0,0.03546709]
[1749594765437,0.03354813,109910.0,109900.0,0.0354673]
[1749594765669,0.03354813,109910.0,109900.0,0.02910664]
[1749594765878,0.03354813,109910.0,109900.0,0.03546729]
[1749594766746,0.03354813,109910.0,109900.0,0.02910664]
[1749594766962,0.03354813,109910.0,109900.0,0.03547306]
[1749594767187,0.03354813,109910.0,109900.0,0.02910664]
[1749594767392,0.47944238,109910.0,109900.0,0.03547305]
[1749594768259,0.032,109880.0,109870.0,0.07227211]
[1749594769791,0.032,109880.0,109870.0,0.07427211]
[1749594770425,0.032,109880.0,109870.0,0.002]
[1749594771317,0.032,109880.0,109870.0,0.003]
[1749594773488,0.04090119,109880.0,109870.0,0.003]
[1749594777123,0.38090119,109880.0,109870.0,0.003]
[1749594777338,0.38090119,109880.0,109870.0,0.01995785]
[1749594777962,0.38090119,109880.0,109870.0,0.01995993]
[1749594778190,0.47225459,109880.0,109870.0,0.01995993]
[1749594778825,0.47225459,109880.0,109870.0,0.0199523]
[1749594779040,0.57653459,109880.0,109870.0,0.01695246]
[1749594779254,0.57753459,109880.0,109870.0,0.01695246]
[1749594779472,0.57953459,109880.0,109870.0,0.01695246]
[1749594779674,0.57903459,109880.0,109870.0,0.01695465]
[1749594779886,0.57903459,109880.0,109870.0,0.01695463]
[1749594780098,0.57903459,109880.0,109870.0,0.01695478]
[1749594780528,0.57891459,109880.0,109870.0,0.01694916]
[1749594780759,0.57887459,109880.0,109870.0,0.01694916]
[1749594780976,0.59341544,109880.0,109870.0,0.01694916]
[1749594781185,0.0315,109870.0,109860.0,0.002]
[1749594781614,0.0315,109870.0,109860.0,0.01895401]
[1749594781843,0.13739425,109870.0,109860.0,0.01895401]
[1749594782072,0.0315,109850.0,109840.0,0.02817965]
[1749594782307,0.24155425,109850.0,109840.0,0.02817965]
[1749594782519,0.24155425,109850.0,109840.0,0.02866213]
[1749594783172,0.27327425,109850.0,109840.0,0.00248248]
[1749594784049,0.30057925,109850.0,109840.0,0.00248248]
[1749594784957,0.30057925,109850.0,109840.0,0.00348248]
[1749594786023,0.29997925,109850.0,109840.0,0.00348248]
[1749594790303,0.16409925,109850.0,109840.0,0.00348248]
[1749594790514,0.131465,109850.0,109840.0,0.03504392]
[1749594790727,0.4442,109850.0,109840.0,0.00348248]
[1749594790958,0.4755,109850.0,109840.0,0.00348248]
[1749594791591,0.3713,109850.0,109840.0,0.00348248]
[1749594791799,0.47554,109850.0,109840.0,0.00348248]
[1749594792307,0.4755,109850.0,109840.0,0.00348248]
[1749594793151,0.3713,109850.0,109840.0,0.00348248]
[1749594793357,0.34,109850.0,109840.0,0.00348248]
[1749594793576,0.34,109850.0,109840.0,0.03528248]
[1749594793762,0.44416,109850.0,109840.0,0.03528248]
[1749594794008,0.44416,109850.0,109840.0,0.05218938]
[1749594794221,0.44416,109850.0,109840.0,0.05218928]
[1749594794435,0.44416,109850.0,109840.0,0.05219413]
[1749594794647,0.44416,109850.0,109840.0,0.05219416]
[1749594795087,0.34,109850.0,109840.0,0.05219432]
[1749594795302,0.4442,109850.0,109840.0,0.05219432]
[1749594795943,0.4442,109850.0,109840.0,0.03528248]
[1749594796177,0.4442,109850.0,109840.0,0.05219446]
[1749594796399,0.4442,109850.0,109840.0,0.02039446]
[1749594796824,0.4442,109850.0,109840.0,0.03679446]
[1749594797038,0.4442,109850.0,109840.0,0.05279446]
[1749594797508,0.4442,109850.0,109840.0,0.05279705]
[1749594797722,0.4442,109850.0,109840.0,0.05280541]
[1749594797945,0.4442,109850.0,109840.0,0.05280485]
[1749594798163,0.4442,109850.0,109840.0,0.05280519]
[1749594798387,0.4442,109850.0,109840.0,0.03680519]
[1749594798842,0.4442,109850.0,109840.0,0.03680543]
[1749594799125,0.34,109850.0,109840.0,0.05330536]
[1749594799344,0.44416,109860.0,109850.0,0.0315]
[1749594799811,0.44416,109860.0,109850.0,0.0484221]
[1749594800273,0.44412,109860.0,109850.0,0.0484221]
[1749594800562,0.44412,109860.0,109850.0,0.0319221]
[1749594801030,0.34,109860.0,109850.0,0.0307]
[1749594801460,0.341,109860.0,109850.0,0.0307]
[1749594801677,0.341,109860.0,109850.0,0.0476266]
[1749594802104,0.002,109860.0,109850.0,0.0476266]
[1749594802327,0.002,109860.0,109850.0,0.04762584]
[1749594802541,0.002,109860.0,109850.0,0.0307]
[1749594802769,0.002,109860.0,109850.0,0.04762597]
[1749594802979,0.002,109860.0,109850.0,0.0307]
[1749594803191,0.002,109860.0,109850.0,0.04762599]
[1749594804095,0.002,109860.0,109850.0,0.04762894]
[1749594804298,0.002,109860.0,109850.0,0.0307]
[1749594804510,0.001,109860.0,109850.0,0.0307]
[1749594804941,0.10416,109870.0,109850.0,0.1220534]
[1749594805152,0.10416,109870.0,109850.0,0.13898736]
[1749594805592,0.10416,109870.0,109850.0,0.13998736]
[1749594806023,0.10416,109870.0,109850.0,0.1389886]
[1749594806235,0.10416,109870.0,109850.0,0.13898863]
[1749594806447,0.10416,109870.0,109850.0,0.13998863]
[1749594806697,0.10416,109870.0,109850.0,0.1230534]
[1749594806935,0.10416,109870.0,109850.0,0.1399886]
[1749594807164,0.10416,109870.0,109850.0,0.13998913]
[1749594807653,0.04070119,109880.0,109860.0,0.0316]
[1749594807918,0.11278119,109880.0,109860.0,0.04854254]
[1749594808130,0.00890119,109880.0,109870.0,0.0157]
[1749594808341,0.34890119,109880.0,109870.0,0.0157]
[1749594808616,0.002,109890.0,109870.0,0.0481384]
[1749594808860,0.002,109890.0,109870.0,0.04813825]
[1749594809105,0.002,109880.0,109870.0,0.01693825]
[1749594809370,0.0326,109880.0,109870.0,0.01693814]
[1749594809595,0.04386286,109880.0,109870.0,0.01693833]
[1749594809834,0.04386286,109880.0,109870.0,0.01693795]
[1749594809835,0.002,109880.0,109870.0,0.01693795]
[1749594810046,0.002,109880.0,109860.0,0.37937211]
[1749594810047,0.0336,109880.0,109860.0,0.37937211]
[1749594810315,0.0336,109880.0,109870.0,0.002]
[1749594810548,0.0316,109880.0,109870.0,0.01693986]
[1749594810782,0.0316,109880.0,109870.0,0.01893986]
[1749594811455,0.0316,109880.0,109870.0,0.0189313]
[1749594811704,0.0316,109880.0,109870.0,0.01893234]
[1749594811925,0.0316,109880.0,109870.0,0.02093234]
[1749594812149,0.0316,109880.0,109870.0,0.02093262]
[1749594812150,0.13749425,109880.0,109870.0,0.02093262]
[1749594812838,0.13749425,109880.0,109870.0,0.02093749]
[1749594813065,0.13749425,109880.0,109870.0,0.01893749]
[1749594813321,0.13749425,109880.0,109870.0,0.01893763]
[1749594813563,0.13749425,109880.0,109870.0,0.01893754]
[1749594813810,0.3719,109870.0,109850.0,0.09862929]
[1749594814066,0.3719,109870.0,109850.0,0.11556842]
[1749594814710,0.3719,109870.0,109850.0,0.11556885]
[1749594814924,0.3719,109870.0,109850.0,0.09267014]
[1749594815134,0.3719,109870.0,109850.0,0.07873058]
[1749594815389,0.3719,109870.0,109850.0,0.095674]
[1749594815634,0.3719,109870.0,109850.0,0.09567741]
[1749594815871,0.3719,109870.0,109850.0,0.07873058]
[1749594817985,0.3719,109870.0,109850.0,0.09433058]
[1749594819137,0.3719,109870.0,109850.0,0.0368]
[1749594819966,0.3719,109870.0,109850.0,0.05375749]
[1749594820181,0.3719,109870.0,109850.0,0.05377252]
[1749594820409,0.21921305,109880.0,109860.0,0.0156]
[1749594820410,0.3490788,109880.0,109860.0,0.0156]
[1749594820626,0.0090788,109880.0,109870.0,0.0156]
[1749594820849,0.0090788,109880.0,109870.0,0.03256966]
[1749594821063,0.47776,109890.0,109870.0,0.01696966]
[1749594821281,0.0316,109880.0,109860.0,0.02665055]
[1749594821491,0.0316,109880.0,109860.0,0.04361564]
[1749594821702,0.0316,109880.0,109860.0,0.0436169]
[1749594821908,0.0316,109880.0,109860.0,0.04761693]
[1749594822120,0.0316,109880.0,109860.0,0.02865055]
[1749594822332,0.0316,109880.0,109860.0,0.04561691]
[1749594822758,0.0316,109880.0,109860.0,0.04561707]
[1749594823044,0.0316,109880.0,109860.0,0.10292266]
[1749594823252,0.0316,109880.0,109860.0,0.11988916]
[1749594823468,0.0316,109880.0,109860.0,0.11988917]
[1749594823679,0.0316,109880.0,109860.0,0.10292266]
[1749594823891,0.0316,109880.0,109860.0,0.04762317]
[1749594824105,0.0324,109870.0,109860.0,0.04762317]
[1749594824316,0.0324,109870.0,109860.0,0.04762391]
[1749594824986,0.0324,109870.0,109860.0,0.04562391]
[1749594825395,0.0324,109870.0,109860.0,0.04562675]
[1749594825601,0.0324,109870.0,109860.0,0.03065055]
[1749594825805,0.0324,109870.0,109860.0,0.04762674]
[1749594826434,0.0324,109870.0,109860.0,0.04762675]
[1749594826645,0.0324,109870.0,109860.0,0.0476268]
[1749594827056,0.0324,109870.0,109860.0,0.04763453]
[1749594827265,0.0324,109870.0,109860.0,0.04763458]
[1749594828094,0.0324,109870.0,109860.0,0.04763591]
[1749594828337,0.0324,109870.0,109860.0,0.0476358]
[1749594828519,0.0324,109870.0,109860.0,0.04763579]
[1749594828756,0.0324,109870.0,109860.0,0.1199079]
[1749594828970,0.0324,109870.0,109860.0,0.11990797]
[1749594829398,0.0324,109870.0,109860.0,0.04763586]
[1749594829608,0.0324,109870.0,109860.0,0.11990797]
[1749594829819,0.0324,109870.0,109860.0,0.11990788]
[1749594830022,0.0324,109870.0,109860.0,0.1199079]
[1749594830234,0.0324,109870.0,109860.0,0.11990791]
[1749594830458,0.0324,109870.0,109860.0,0.10292266]
[1749594830666,0.0324,109870.0,109860.0,0.1199127]
[1749594831111,0.0324,109870.0,109860.0,0.10292266]
[1749594831543,0.0324,109870.0,109860.0,0.11991382]
[1749594831764,0.0324,109870.0,109860.0,0.10292266]
[1749594832231,0.0324,109870.0,109860.0,0.11991391]
[1749594832935,0.0324,109870.0,109860.0,0.11991519]
[1749594833162,0.0324,109870.0,109860.0,0.11991507]
[1749594833614,0.0324,109870.0,109860.0,0.11991535]
[1749594834042,0.0324,109870.0,109860.0,0.11991504]
[1749594834498,0.0324,109870.0,109860.0,0.11991486]
[1749594834728,0.0324,109870.0,109860.0,0.11991487]
[1749594835160,0.0324,109870.0,109860.0,0.11991489]
[1749594835834,0.0324,109870.0,109860.0,0.11991517]
[1749594836507,0.0324,109870.0,109860.0,0.11991601]
[1749594836732,0.0324,109870.0,109860.0,0.10292266]
[1749594836956,0.0324,109870.0,109860.0,0.11991546]
[1749594837389,0.0324,109870.0,109860.0,0.11991665]
[1749594837614,0.0324,109870.0,109860.0,0.11991595]
[1749594838062,0.0324,109870.0,109860.0,0.11991584]
[1749594838507,0.0324,109870.0,109860.0,0.12628826]
[1749594838960,0.0324,109870.0,109860.0,0.12628875]
[1749594839194,0.0324,109870.0,109860.0,0.10929508]
[1749594839426,0.0324,109870.0,109860.0,0.12628878]
[1749594839647,0.0324,109870.0,109860.0,0.1262889]
[1749594839896,0.0324,109870.0,109860.0,0.12628903]
[1749594840790,0.0324,109870.0,109860.0,0.10929836]
[1749594841005,0.0324,109870.0,109860.0,0.11992463]
[1749594841225,0.0324,109870.0,109860.0,0.12630023]
[1749594841434,0.0324,109870.0,109860.0,0.12630027]
[1749594842358,0.0324,109870.0,109860.0,0.126301]
[1749594842610,0.0324,109870.0,109860.0,0.05402962]
[1749594842850,0.47508,109870.0,109860.0,0.05403004]
[1749594843086,0.47508,109870.0,109860.0,0.0914507]
[1749594843322,0.47508,109870.0,109860.0,0.09145106]
[1749594843550,0.47508,109870.0,109860.0,0.10645665]
[1749594843774,0.47508,109870.0,109860.0,0.10008005]
[1749594844010,0.58097425,109870.0,109860.0,0.09808005]
[1749594844266,0.58097425,109870.0,109860.0,0.09807745]
[1749594844483,0.58097425,109870.0,109860.0,0.08107425]
[1749594845870,0.58097425,109870.0,109860.0,0.02665055]
[1749594846751,0.60827625,109870.0,109860.0,0.02665055]
[1749594847407,0.04654085,109850.0,109840.0,0.05690618]
[1749594847624,0.24053425,109850.0,109840.0,0.00248248]
[1749594849632,0.24053425,109850.0,109840.0,0.01947945]
[1749594849855,0.24053425,109850.0,109840.0,0.00248248]
[1749594850073,0.24053425,109850.0,109840.0,0.01947943]
[1749594850292,0.24053425,109850.0,109840.0,0.01947918]
[1749594850503,0.24053425,109850.0,109840.0,0.00248248]
[1749594850739,0.24053425,109850.0,109840.0,0.01947922]
[1749594851229,0.26783825,109850.0,109840.0,0.01945159]
[1749594851446,0.26783825,109850.0,109840.0,0.01945147]
[1749594851878,0.26783825,109850.0,109840.0,0.00248248]
[1749594852516,0.26783825,109850.0,109840.0,0.01945135]
[1749594852789,0.26783825,109850.0,109840.0,0.00248248]
[1749594853044,0.26783825,109850.0,109840.0,0.01945133]
[1749594853328,0.26783825,109850.0,109840.0,0.01945134]
[1749594853513,0.16519825,109850.0,109840.0,0.01945135]
[1749594853758,0.23583825,109850.0,109840.0,0.01945135]
[1749594853970,0.367304,109850.0,109840.0,0.01945135]
[1749594854185,0.44264,109850.0,109840.0,0.01944808]
[1749594854399,0.44264,109850.0,109840.0,0.01944614]
[1749594854612,0.44264,109850.0,109840.0,0.00248248]
[1749594854847,0.47484,109850.0,109840.0,0.01944586]
[1749594855062,0.47484,109850.0,109840.0,0.01944651]
[1749594855300,0.47484,109850.0,109840.0,0.00248248]
[1749594855508,0.47484,109850.0,109840.0,0.01944613]
[1749594855740,0.44264,109850.0,109840.0,0.01944613]
[1749594856262,0.44272,109850.0,109840.0,0.01944572]
[1749594856493,0.44272,109850.0,109840.0,0.03864111]
[1749594856754,0.47492,109850.0,109840.0,0.05560545]
[1749594856983,0.44272,109850.0,109840.0,0.03864111]
[1749594857228,0.44272,109850.0,109840.0,0.05560541]
[1749594857412,0.44272,109850.0,109840.0,0.05560411]
[1749594857644,0.44272,109850.0,109840.0,0.05560141]
[1749594857854,0.44272,109850.0,109840.0,0.03864111]
[1749594858065,0.44276,109850.0,109840.0,0.05560088]
[1749594858273,0.44276,109850.0,109840.0,0.05560152]
[1749594858478,0.44276,109850.0,109840.0,0.05560169]
[1749594858697,0.44276,109850.0,109840.0,0.05560188]
[1749594858922,0.34,109850.0,109840.0,0.05560201]
[1749594859133,0.44268,109850.0,109840.0,0.03864111]
[1749594859545,0.44268,109850.0,109840.0,0.05559569]
[1749594859974,0.44268,109850.0,109840.0,0.05559595]
[1749594860183,0.34,109850.0,109840.0,0.05559618]
[1749594860422,0.027302,109860.0,109840.0,0.08749597]
[1749594860652,0.0308,109870.0,109850.0,0.06804924]
[1749594860858,0.10268,109860.0,109850.0,0.13942018]
[1749594861138,0.44268,109860.0,109850.0,0.1394187]
[1749594861362,0.10268,109860.0,109850.0,0.0863237]
[1749594861574,0.44268,109860.0,109850.0,0.12246921]
[1749594861782,0.44268,109860.0,109850.0,0.12246931]
[1749594861992,0.44268,109860.0,109850.0,0.12381451]
[1749594862211,0.44268,109860.0,109850.0,0.12381505]
[1749594862652,0.44161062,109860.0,109850.0,0.10751332]
[1749594862884,0.47241062,109860.0,109850.0,0.10751367]
[1749594863077,0.47241062,109860.0,109850.0,0.09056935]
[1749594863331,0.47241062,109860.0,109850.0,0.10751467]
[1749594863544,0.47241062,109860.0,109850.0,0.01694532]
[1749594863764,0.47241062,109860.0,109850.0,0.0169453]
[1749594864205,0.47241062,109860.0,109840.0,0.34870618]
[1749594865506,0.47241062,109860.0,109840.0,0.35070618]
[1749594866978,0.47241062,109860.0,109840.0,0.35270618]
[1749594868739,0.47241062,109860.0,109850.0,0.0544237]
[1749594869992,0.47241062,109860.0,109850.0,0.0554237]
[1749594872629,0.44157062,109860.0,109850.0,0.0554237]
[1749594872840,0.44157062,109860.0,109850.0,0.0709237]
[1749594874139,0.44157062,109860.0,109850.0,0.0554237]
[1749594877399,0.47247062,109860.0,109850.0,0.0554237]
[1749594882341,0.57836487,109860.0,109850.0,0.0554237]
[1749594882773,0.57836487,109860.0,109850.0,0.001]
[1749594883438,0.0312,109850.0,109840.0,0.05690618]
[1749594885847,0.0312,109850.0,109840.0,0.05790618]
[1749594887315,0.1225534,109850.0,109840.0,0.05790618]
[1749594889608,0.1225534,109850.0,109840.0,0.07490643]
[1749594889815,0.1225534,109850.0,109840.0,0.05790618]
[1749594890023,0.1225534,109850.0,109840.0,0.07490648]
[1749594890258,0.1225534,109850.0,109840.0,0.09190676]
[1749594891505,0.1225534,109850.0,109840.0,0.09190686]
[1749594891680,0.1225534,109850.0,109840.0,0.07490648]
[1749594892141,0.1225534,109850.0,109840.0,0.09190717]
[1749594892468,0.13709425,109850.0,109840.0,0.09190717]
[1749594892668,0.13709425,109850.0,109840.0,0.0919043]
[1749594892869,0.13709425,109850.0,109840.0,0.09190403]
[1749594893283,0.13709425,109850.0,109840.0,0.07490648]
[1749594893701,0.13709425,109850.0,109840.0,0.09190406]
[1749594894111,0.13709425,109850.0,109840.0,0.03748036]
[1749594894599,0.13709425,109850.0,109840.0,0.03747871]
[1749594895203,0.13709425,109850.0,109840.0,0.02048278]
[1749594895440,0.13709425,109850.0,109840.0,0.03747871]
[1749594895641,0.13709425,109850.0,109840.0,0.03747872]
[1749594895849,0.13709425,109850.0,109840.0,0.03747871]
[1749594896338,0.13709425,109850.0,109840.0,0.0374787]
[1749594896541,0.13709425,109850.0,109840.0,0.03747888]
[1749594896746,0.13709425,109850.0,109840.0,0.03747884]
[1749594897249,0.13709425,109850.0,109840.0,0.0374789]
[1749594898036,0.13709425,109850.0,109840.0,0.03747784]
[1749594898812,0.13709425,109850.0,109840.0,0.02048278]
[1749594899049,0.13709425,109850.0,109840.0,0.03747784]
[1749594900162,0.13709425,109850.0,109840.0,0.03747541]
[1749594900370,0.13709425,109850.0,109840.0,0.03747517]
[1749594900590,0.13709425,109850.0,109840.0,0.03747541]
[1749594900802,0.13709425,109850.0,109840.0,0.03747555]
[1749594901015,0.47709425,109850.0,109840.0,0.02048278]
[1749594901226,0.47709425,109850.0,109840.0,0.03747626]
[1749594901684,0.48619682,109850.0,109840.0,0.02048278]
[1749594901880,0.47709425,109850.0,109840.0,0.03747987]
[1749594902093,0.47709425,109850.0,109840.0,0.02048278]
[1749594902309,0.47709425,109850.0,109840.0,0.03748018]
[1749594902526,0.47709425,109850.0,109840.0,0.03648021]
[1749594902739,0.38604085,109840.0,109830.0,0.06666667]
[1749594902944,0.60995425,109840.0,109830.0,0.06666667]
[1749594903400,0.63723811,109840.0,109830.0,0.06666667]
[1749594903613,0.04664085,109830.0,109820.0,0.06866667]
[1749594903824,0.47799425,109830.0,109820.0,0.06866667]
[1749594905147,0.44589425,109830.0,109820.0,0.06866667]
[1749594905348,0.54949425,109830.0,109820.0,0.06866667]
[1749594905581,0.55049425,109830.0,109820.0,0.06866667]
[1749594905792,0.55978843,109830.0,109820.0,0.06866667]
[1749594906179,0.59158843,109830.0,109820.0,0.06866667]
[1749594908392,0.0326,109810.0,109800.0,0.0630673]
[1749594908596,0.2265534,109810.0,109800.0,0.0086436]
[1749594909435,0.5665534,109810.0,109800.0,0.0086436]
[1749594909854,0.56660148,109810.0,109800.0,0.0086436]
[1749594910268,0.53400148,109810.0,109800.0,0.0086436]
[1749594910705,0.34004808,109810.0,109800.0,0.0272436]
[1749594910910,0.44264808,109810.0,109800.0,0.0430436]
[1749594911085,0.44264808,109810.0,109800.0,0.0460436]
[1749594912675,0.44264808,109810.0,109800.0,0.0136436]
[1749594914687,0.44264808,109810.0,109800.0,0.03062455]
[1749594915100,0.44264808,109810.0,109800.0,0.0136436]
[1749594915302,0.44264808,109810.0,109800.0,0.0306211]
[1749594915458,0.44264808,109810.0,109800.0,0.03062137]
[1749594915664,0.44264808,109810.0,109800.0,0.03062114]
[1749594915870,0.44264808,109810.0,109800.0,0.03062107]
[1749594916517,0.46996108,109810.0,109800.0,0.03062107]
[1749594916714,0.46996108,109810.0,109800.0,0.0136436]
[1749594916924,0.46996108,109810.0,109800.0,0.03061301]
[1749594917130,0.44264808,109810.0,109800.0,0.03061298]
[1749594917610,0.44264808,109810.0,109800.0,0.03061296]
[1749594917829,0.56490148,109810.0,109800.0,0.03061296]
[1749594918049,0.56490148,109810.0,109800.0,0.0136436]
[1749594918319,0.56490148,109810.0,109800.0,0.0306142]
[1749594918764,0.56490148,109810.0,109800.0,0.03061459]
[1749594918955,0.56490148,109810.0,109800.0,0.0136436]
[1749594919713,0.46230148,109810.0,109800.0,0.03061295]
[1749594919911,0.43140148,109810.0,109800.0,0.03061295]
[1749594920122,0.43140148,109810.0,109800.0,0.06281042]
[1749594920123,0.34004808,109810.0,109800.0,0.06281042]
[1749594920331,0.44264808,109810.0,109800.0,0.11723412]
[1749594921938,0.34004808,109810.0,109800.0,0.11723412]
[1749594922174,0.10264808,109810.0,109800.0,0.11723189]
[1749594922376,4.808e-05,109810.0,109800.0,0.11723693]
[1749594922664,4.808e-05,109810.0,109800.0,0.10153613]
[1749594922868,4.808e-05,109810.0,109800.0,0.10153618]
[1749594923433,4.808e-05,109810.0,109800.0,0.1002673]
[1749594923575,4.808e-05,109810.0,109800.0,0.1172344]
[1749594923936,4.808e-05,109810.0,109800.0,0.11723366]
[1749594924242,4.808e-05,109810.0,109800.0,0.11723337]
[1749594924366,4.808e-05,109810.0,109800.0,0.1002673]
[1749594924586,4.808e-05,109810.0,109800.0,0.08591571]
[1749594924791,0.03254808,109810.0,109800.0,0.03061767]
[1749594925155,0.03254808,109810.0,109800.0,0.08494744]
[1749594925365,4.808e-05,109810.0,109800.0,0.08494744]
[1749594925705,4.808e-05,109810.0,109800.0,0.08495597]
[1749594925909,4.808e-05,109810.0,109800.0,0.08495596]
[1749594926108,0.03254808,109810.0,109800.0,0.08495624]
[1749594926328,0.03254808,109810.0,109800.0,0.08495658]
[1749594927190,0.03254808,109810.0,109800.0,0.08495628]
[1749594927394,0.03254808,109810.0,109800.0,0.08495627]
[1749594927520,0.03254808,109810.0,109800.0,0.06797337]
[1749594927920,0.03254808,109810.0,109800.0,0.08495656]
[1749594928153,0.03254808,109810.0,109800.0,0.08495691]
[1749594928313,0.03254808,109810.0,109800.0,0.08495695]
[1749594928715,0.03254808,109810.0,109800.0,0.03062718]
[1749594929205,0.03254808,109810.0,109800.0,0.0136436]
[1749594929861,0.03254808,109810.0,109800.0,0.03066223]
[1749594930072,0.03254808,109810.0,109800.0,0.04768111]
[1749594930257,0.03254808,109810.0,109800.0,0.03066233]
[1749594931002,0.03254808,109810.0,109800.0,0.04768038]
[1749594932134,0.47844233,109810.0,109800.0,0.04768038]
[1749594932335,0.47844233,109810.0,109800.0,0.04768277]
[1749594932627,0.50575633,109810.0,109800.0,0.04768348]
[1749594932800,0.50575633,109810.0,109800.0,0.04768388]
[1749594933361,0.60835633,109810.0,109800.0,0.04768388]
[1749594933758,0.60835633,109810.0,109800.0,0.04568388]
[1749594933963,0.60835633,109810.0,109800.0,0.04268388]
[1749594934165,0.60835633,109810.0,109800.0,0.02666233]
[1749594934797,0.60835633,109810.0,109800.0,0.04468388]
[1749594935397,0.60835633,109810.0,109800.0,0.04368388]
[1749594935930,0.60935633,109810.0,109800.0,0.04368628]
[1749594936273,0.60935633,109810.0,109800.0,0.02666233]
[1749594936496,0.60935633,109810.0,109800.0,0.02566233]
[1749594936704,0.60935633,109810.0,109800.0,0.04269121]
[1749594938002,0.60935633,109810.0,109800.0,0.02566233]
[1749594938612,0.60935633,109810.0,109800.0,0.04267689]
[1749594939242,0.60935633,109810.0,109800.0,0.02566233]
[1749594939368,0.60935633,109810.0,109800.0,0.04267694]
[1749594941223,0.60935633,109810.0,109800.0,0.02566233]
[1749594941419,0.60935633,109810.0,109800.0,0.04266977]
[1749594941626,0.60935633,109810.0,109800.0,0.02566233]
[1749594941819,0.60935633,109810.0,109800.0,0.04266982]
[1749594942154,0.60935633,109810.0,109800.0,0.04266984]
[1749594942606,0.61842222,109810.0,109800.0,0.04267035]
[1749594942812,0.62752836,109810.0,109800.0,0.04267035]
[1749594943236,0.62752836,109810.0,109800.0,0.02566233]
[1749594943579,0.61842222,109810.0,109800.0,0.02566233]
[1749594943785,0.63252827,109810.0,109800.0,0.02666233]
[1749594943967,0.62342222,109810.0,109800.0,0.04367212]
[1749594944170,0.61431633,109810.0,109800.0,0.04366382]
[1749594944388,0.51075633,109810.0,109800.0,0.04366382]
[1749594944596,0.61331633,109810.0,109800.0,0.04366382]
[1749594944853,0.61731633,109810.0,109800.0,0.04366382]
[1749594945078,0.61731633,109810.0,109800.0,0.04366244]
[1749594945273,0.61731633,109810.0,109800.0,0.03303737]
[1749594945717,0.61731633,109810.0,109800.0,0.02666233]
[1749594945921,0.61731633,109810.0,109800.0,0.05003749]
[1749594946770,0.61731633,109810.0,109800.0,0.04366021]
[1749594947034,0.61731633,109810.0,109800.0,0.04365959]
[1749594947289,0.61731633,109810.0,109800.0,0.05003331]
[1749594947565,0.60277548,109810.0,109800.0,0.05003321]
[1749594947786,0.61731633,109810.0,109800.0,0.03303525]
[1749594948016,0.61731633,109810.0,109800.0,0.0500297]
[1749594948220,0.51475633,109810.0,109800.0,0.0500297]
[1749594948439,0.61731633,109810.0,109800.0,0.05002979]
[1749594948683,0.61731633,109810.0,109800.0,0.0330353]
[1749594948903,0.61731633,109810.0,109800.0,0.05002997]
[1749594949117,0.61731633,109810.0,109800.0,0.04365698]
[1749594949331,0.61731633,109810.0,109800.0,0.05002957]
[1749594949713,0.61731633,109810.0,109800.0,0.05002952]
[1749594949962,0.51475633,109810.0,109800.0,0.05002952]
[1749594950276,0.61731633,109810.0,109800.0,0.05002703]
[1749594950486,0.61731633,109810.0,109800.0,0.03303428]
[1749594950672,0.61731633,109810.0,109800.0,0.05002615]
[1749594950904,0.61731633,109810.0,109800.0,0.03303427]
[1749594951109,0.61731633,109810.0,109800.0,0.04365429]
[1749594951242,0.61731633,109810.0,109800.0,0.05002627]
[1749594951881,0.61731633,109810.0,109800.0,0.05002718]
[1749594952429,0.61731633,109810.0,109800.0,0.04365578]
[1749594952607,0.61731633,109810.0,109800.0,0.02666233]
[1749594952836,0.61731633,109810.0,109800.0,0.03303313]
[1749594953172,0.61731633,109810.0,109800.0,0.03303325]
[1749594953380,0.61731633,109810.0,109800.0,0.05002238]
[1749594953576,0.61731633,109810.0,109800.0,0.05002239]
[1749594953814,0.61731633,109810.0,109800.0,0.05002238]
[1749594953979,0.48225633,109810.0,109800.0,0.04196233]
[1749594954201,0.58481633,109810.0,109800.0,0.03303324]
[1749594954402,0.58481633,109810.0,109800.0,0.04364759]
[1749594954607,0.58481633,109810.0,109800.0,0.05001705]
[1749594955728,0.58481633,109810.0,109800.0,0.05001862]
[1749594956131,0.58481633,109810.0,109800.0,0.05002249]
[1749594956332,0.58481633,109810.0,109800.0,0.02666233]
[1749594956533,0.58481633,109810.0,109800.0,0.0500233]
[1749594956737,0.58481633,109810.0,109800.0,0.05002342]
[1749594957343,0.58481633,109810.0,109800.0,0.05002399]
[1749594957680,0.58481633,109810.0,109800.0,0.03303373]
[1749594957889,0.58481633,109810.0,109800.0,0.05002394]
[1749594958308,0.58481633,109810.0,109800.0,0.05002418]
[1749594958749,0.58481633,109810.0,109800.0,0.05002981]
[1749594959387,0.58481633,109810.0,109800.0,0.05003238]
[1749594959596,0.58481633,109810.0,109800.0,0.05003234]
[1749594959868,0.61511633,109810.0,109800.0,0.05003223]
[1749594960075,0.61511633,109810.0,109800.0,0.03303595]
[1749594960289,0.61511633,109810.0,109800.0,0.0500322]
[1749594960705,0.61511633,109810.0,109800.0,0.04365856]
[1749594961171,0.61511633,109810.0,109800.0,0.04365969]
[1749594961404,0.61511633,109810.0,109800.0,0.04365976]
[1749594961623,0.61511633,109810.0,109800.0,0.04365975]
[1749594961855,0.61511633,109810.0,109800.0,0.02666233]
[1749594962128,0.61511633,109810.0,109800.0,0.04366594]
[1749594962833,0.61511633,109810.0,109800.0,0.04366734]
[1749594963292,0.61511633,109810.0,109800.0,0.02666233]
[1749594963554,0.61511633,109810.0,109800.0,0.043668]
[1749594964021,0.61511633,109810.0,109800.0,0.04367099]
[1749594964466,0.61511633,109810.0,109800.0,0.043671]